bitfinex/quotes_ETHUSD_20260131
["timestamp","ask_amount","ask_price","bid_price","bid_amount"]
[1769893725667,1.04707656,2387.6,2386.7,0.01267828]
[1769893726191,14.88023306,2387.6,2386.5,0.0011]
[1769893726491,1.04707656,2387.6,2386.5,0.0011]
[1769893726695,0.878,2387.5,2386.5,0.0011]
[1769893727178,1.04707656,2387.6,2386.5,0.0011]
[1769893727386,0.52353828,2387.5,2386.5,0.0011]
[1769893728407,1.04716427,2387.4,2386.5,0.0011]
[1769893729397,1.04716427,2387.4,2386.5,0.01377828]
[1769893731007,1.04716427,2387.4,2386.5,1.06130518]
[1769893731296,4.71219539,2387.5,2386.5,1.06130518]
[1769893731297,1.04714386,2387.5,2386.5,1.06130518]
[1769893731503,1.04714386,2387.5,2386.6,0.52643157]
[1769893731687,14.88030036,2387.5,2386.5,0.0011]
[1769893732994,0.0008,2386.9,2386.3,0.0011]
[1769893734276,0.0008,2386.9,2386.7,0.0011]
[1769893734488,13.8339565,2386.9,2386.0,0.0011]
[1769893734799,0.878,2386.8,2386.0,0.0011]
[1769893735017,1.04746185,2386.8,2386.0,0.0011]
[1769893735317,0.0008,2386.9,2386.5,0.0011]
[1769893735318,1.04820815,2386.9,2386.5,0.0011]
[1769893735486,0.0008,2386.9,2386.5,0.0011]
[1769893736626,1.92507656,2387.7,2386.5,0.0011]
[1769893736927,1.04706333,2387.7,2386.7,1.06014968]
[1769893737120,1.04690117,2388.0,2386.8,0.01267828]
[1769893737290,1.04690117,2388.0,2386.8,13.05031597]
[1769893737492,1.04690117,2388.0,2386.7,1.0474714]
[1769893737691,1.04690117,2388.0,2386.8,0.5237357]
[1769893738002,14.88005767,2388.0,2386.5,0.0011]
[1769893738404,14.88005767,2388.0,2386.5,1.04863612]
[1769893738723,14.88005767,2388.0,2386.5,1.0486498]
[1769893739025,14.88005767,2388.0,2386.5,0.0011]
[1769893740035,1.04690117,2388.0,2386.5,0.0011]
[1769893740333,1.04690117,2388.0,2386.6,13.06299425]
[1769893740940,13.9355565,2388.4,2386.6,13.06299425]
[1769893740941,14.87975088,2388.8,2387.1,13.06299425]
[1769893741247,1.04646295,2389.0,2387.5,0.01267828]
[1769893741403,1.04646295,2389.0,2387.5,13.06299425]
[1769893741804,1.04646295,2389.0,2387.2,1.30756725]
[1769893741805,0.1024,2388.3,2387.2,1.30756725]
[1769893742023,0.9804,2388.3,2386.9,1.04738363]
[1769893742242,0.9804,2388.3,2386.5,13.05141597]
[1769893742404,0.9804,2388.3,2386.5,0.0011]
[1769893742405,13.8331565,2387.9,2386.5,0.0011]
[1769893742913,1.04698886,2387.8,2386.5,0.0011]
[1769893744544,14.88014536,2387.8,2386.5,0.0011]
[1769893745115,1.04698886,2387.8,2386.5,0.0011]
[1769893745609,0.21881402,2387.9,2386.7,13.06299425]
[1769893745832,4.18690446,2388.4,2386.7,13.06299425]
[1769893745833,1.0469403,2388.0,2386.7,13.06299425]
[1769893746138,4.18728956,2388.2,2386.8,14.3705615]
[1769893746338,4.18728956,2388.2,2386.8,14.35788322]
[1769893746539,4.18728956,2388.2,2386.9,13.06299425]
[1769893746843,18.01954068,2388.7,2386.9,13.06299425]
[1769893746844,0.1024,2388.9,2387.3,13.05031597]
[1769893747058,0.1024,2389.0,2387.4,1.04716427]
[1769893747223,0.21872501,2388.8,2387.4,1.04716427]
[1769893747546,0.21872501,2388.8,2387.4,13.65494337]
[1769893748222,0.001,2388.0,2387.0,2.31505615]
[1769893748427,0.001,2388.0,2387.3,1.04720807]
[1769893748933,0.001,2388.0,2387.1,1.04729588]
[1769893749234,0.001,2388.0,2387.1,13.65507498]
[1769893749636,0.001,2388.0,2387.1,13.66775326]
[1769893750818,0.001,2388.0,2387.2,0.01267828]
[1769893751031,0.001,2388.0,2387.2,1.88871798]
[1769893751228,0.001,2388.0,2387.3,1.04720814]
[1769893751532,1.26530019,2388.8,2387.5,12.62045738]
[1769893751734,1.26530019,2388.8,2387.5,12.6077791]
[1769893752052,1.26530019,2388.8,2387.6,1.26204574]
[1769893752459,1.26530019,2388.8,2387.8,12.62045738]
[1769893752460,0.21872501,2388.8,2387.8,12.62045738]
[1769893752747,1.04628777,2389.4,2387.8,12.6077791]
[1769893752945,0.21867095,2389.2,2387.8,12.6077791]
[1769893753453,1.04641915,2389.1,2387.8,13.65473862]
[1769893753655,1.04641915,2389.1,2387.9,1.87207195]
[1769893753821,1.04641915,2389.1,2387.8,1.04695952]
[1769893754146,12.83250611,2388.9,2387.3,1.04717392]
[1769893754449,12.83250611,2388.9,2387.4,1.04716174]
[1769893754649,12.83250611,2388.9,2386.5,0.0011]
[1769893754650,12.83250611,2387.8,2386.5,0.0011]
[1769893754852,13.68784378,2387.7,2386.5,0.0011]
[1769893755147,0.85533767,2387.6,2386.5,1.04865292]
[1769893755320,0.85521912,2387.5,2386.5,1.04865292]
[1769893755527,1.04716427,2387.4,2386.6,0.52389228]
[1769893755721,1.04698886,2387.8,2386.6,0.52389228]
[1769893756039,0.86643368,2387.7,2386.6,0.52389228]
[1769893756228,1.04698886,2387.8,2386.6,0.52389228]
[1769893756229,0.86643368,2387.6,2386.6,0.52389228]
[1769893756426,0.86643368,2387.5,2386.6,0.52389228]
[1769893756626,1.04698886,2387.8,2386.6,0.52389228]
[1769893756938,1.47767804,2387.7,2386.6,0.52389228]
[1769893757246,0.86638454,2387.6,2386.6,0.52389228]
[1769893757750,1.04712041,2387.5,2386.6,1.57137662]
[1769893757952,0.86638454,2387.4,2386.5,0.0011]
[1769893758154,0.86638454,2387.4,2386.5,1.04864383]
[1769893758728,0.86638454,2387.4,2386.6,1.04751336]
[1769893758954,1.04707488,2387.7,2386.6,1.04751336]
[1769893759247,1.04707488,2387.7,2386.6,1.06019164]
[1769893759447,1.04707488,2387.7,2386.7,0.52640311]
[1769893759937,1.04685733,2388.1,2386.8,1.04742751]
[1769893760134,0.86879728,2388.0,2386.8,1.04742751]
[1769893760336,0.86879728,2387.9,2386.8,1.04852751]
[1769893760651,0.86879728,2387.8,2386.9,0.57647092]
[1769893760852,0.86879728,2387.7,2386.9,0.57647092]
[1769893761030,0.001,2388.0,2386.9,0.57647092]
[1769893761348,0.8688611,2387.9,2386.9,0.57647092]
[1769893761569,13.68306165,2387.8,2386.8,0.0011]
[1769893761728,13.68306165,2387.8,2386.5,0.0011]
[1769893761729,1.04712041,2387.5,2386.5,0.0011]
[1769893761926,0.8688611,2387.4,2386.5,0.0011]
[1769893762540,13.68306165,2387.4,2386.5,0.0011]
[1769893762850,13.68306165,2387.3,2386.5,0.0011]
[1769893763049,0.8688611,2387.2,2386.5,0.0011]
[1769893763252,0.8688611,2387.2,2386.0,0.0011]
[1769893763456,0.0008,2386.9,2386.0,0.0011]
[1769893763656,0.0008,2386.9,2386.0,13.80098934]
[1769893763834,0.0008,2386.9,2386.1,1.06041307]
[1769893764647,4.18848167,2387.6,2386.1,14.84762413]
[1769893764836,0.90026574,2387.5,2386.6,0.01267828]
[1769893765163,1.04707656,2387.6,2386.6,0.01267828]
[1769893765737,0.90050374,2387.5,2386.6,0.01267828]
[1769893765956,0.001,2388.0,2386.7,1.0474714]
[1769893765957,1.04790117,2388.0,2386.7,1.0474714]
[1769893766135,0.90048893,2387.9,2386.9,0.01267828]
[1769893766334,0.90048893,2387.8,2386.9,0.01267828]
[1769893766631,0.90048893,2387.7,2386.9,0.01267828]
[1769893766838,1.04790117,2388.0,2386.9,0.01267828]
[1769893767038,0.90061016,2387.9,2386.9,0.01267828]
[1769893767234,0.001,2388.0,2387.2,0.01267828]
[1769893767551,4.18605684,2388.9,2387.6,0.01267828]
[1769893767552,1.04669114,2388.5,2387.6,0.01267828]
[1769893767749,17.87801497,2389.1,2387.7,0.01267828]
[1769893767750,1.04666948,2388.6,2387.7,0.01267828]
[1769893768059,4.18591102,2389.0,2387.8,1.04698886]
[1769893768258,4.18591102,2389.0,2387.9,0.52476226]
[1769893770438,1.04646295,2389.1,2387.9,0.52476226]
[1769893770757,13.8606635,2389.1,2387.7,1.04702006]
[1769893770953,13.8606635,2389.1,2387.9,1.04694081]
[1769893771536,13.8606635,2389.1,2387.8,1.04696092]
[1769893771954,13.8606635,2389.1,2387.9,1.04690466]
[1769893772242,13.8606635,2389.1,2387.7,1.04700801]
[1769893772436,13.8606635,2389.1,2387.5,0.01267828]
[1769893772437,0.001,2388.8,2387.5,0.01267828]
[1769893772644,12.81520055,2388.8,2387.6,1.04707507]
[1769893773556,12.81520055,2388.8,2387.7,1.04702281]
[1769893773745,12.81520055,2388.8,2387.8,1.04698654]
[1769893773746,0.001,2388.8,2387.8,1.04698654]
[1769893773950,0.001,2388.8,2387.9,0.52351117]
[1769893774565,0.001,2388.8,2387.9,1.5704355]
[1769893775077,0.001,2388.8,2387.9,0.52351117]
[1769893775274,0.001,2388.8,2387.6,1.04705515]
[1769893775683,12.81520055,2388.8,2387.1,1.92526506]
[1769893775991,12.81420055,2388.4,2386.8,0.52500543]
[1769893776191,0.878,2388.3,2387.2,1.04724694]
[1769893776347,0.878,2388.3,2387.0,1.04731623]
[1769893776543,1.04681349,2388.2,2386.9,1.06006191]
[1769893776748,1.04681349,2388.2,2387.3,0.01267828]
[1769893776990,4.18656105,2388.6,2387.2,0.01267828]
[1769893776991,0.1024,2388.6,2387.2,0.01267828]
[1769893777349,0.1024,2388.6,2387.3,0.01267828]
[1769893777583,0.63605115,2388.6,2387.3,0.01267828]
[1769893778079,0.53365115,2388.6,2387.5,0.01267828]
[1769893778286,0.53365115,2388.6,2387.5,13.87029192]
[1769893778973,0.53365115,2388.6,2387.7,1.0470327]
[1769893778978,1.04668201,2388.5,2387.7,1.0470327]
[1769893779380,1.04667073,2388.6,2387.7,1.05971098]
[1769893780168,1.04667073,2388.6,2387.7,1.0470327]
[1769893780396,1.04667073,2388.6,2387.3,4.20149885]
[1769893780397,14.19978901,2388.5,2387.1,0.878]
[1769893780594,13.34553926,2388.3,2387.2,1.04721134]
[1769893780755,0.85424975,2388.2,2387.3,1.04720129]
[1769893781091,1.04685733,2388.1,2387.3,0.52362797]
[1769893781305,1.04685733,2388.1,2387.0,1.06001803]
[1769893781576,1.04682072,2388.2,2387.1,0.01267828]
[1769893782104,1.04682072,2388.2,2387.2,0.01267828]
[1769893782269,1.04682072,2388.2,2387.3,0.01267828]
[1769893783297,13.10855927,2388.7,2387.3,1.04717254]
[1769893783298,1.14903819,2388.6,2387.3,1.04717254]
[1769893783499,0.8329188,2388.5,2387.3,1.04717254]
[1769893783667,1.14903819,2388.6,2387.3,1.04717254]
[1769893783668,0.8329188,2388.4,2387.3,1.04717254]
[1769893783877,0.8329188,2388.3,2387.3,1.04717254]
[1769893784075,0.8329188,2388.2,2387.3,1.04717254]
[1769893784388,1.04663819,2388.6,2387.4,0.52488142]
[1769893784583,0.83292565,2388.5,2387.4,0.52488142]
[1769893784793,0.83392565,2388.4,2387.4,0.52488142]
[1769893784992,0.83292565,2388.3,2387.4,0.52488142]
[1769893785300,1.04681349,2388.2,2387.5,1.04712041]
[1769893785669,1.04681349,2388.2,2387.4,1.57201102]
[1769893785868,1.04681349,2388.2,2387.5,0.57745089]
[1769893786489,0.001,2388.4,2388.0,0.01267828]
[1769893786793,1.04644538,2389.1,2388.1,0.01267828]
[1769893786992,0.83346232,2389.0,2388.1,0.01267828]
[1769893787196,1.04644538,2389.1,2388.1,0.01267828]
[1769893787372,0.83435022,2389.0,2388.2,1.04681349]
[1769893787575,4.18466489,2389.7,2388.2,1.04681349]
[1769893787576,1.04615642,2389.7,2388.5,0.01267828]
[1769893787770,0.8341206,2389.6,2388.7,0.01267828]
[1769893788071,1.04585006,2390.4,2389.3,0.01267828]
[1769893788406,0.83366688,2390.3,2389.3,0.01267828]
[1769893788573,1.04585006,2390.4,2389.2,0.01267828]
[1769893788770,1.35563923,2390.3,2389.2,0.01267828]
[1769893788979,1.35563923,2390.3,2389.0,0.01267828]
[1769893788980,0.8327142,2390.2,2389.0,0.01267828]
[1769893789202,0.8327142,2390.2,2389.1,0.01267828]
[1769893789507,1.04598133,2390.1,2389.1,1.05908797]
[1769893789723,1.6238516,2390.1,2389.1,1.57342855]
[1769893789888,1.6238516,2390.1,2389.0,1.0464409]
[1769893790221,1.6238516,2390.1,2389.1,1.04641686]
[1769893791093,14.73241087,2390.1,2388.8,0.01267828]
[1769893791283,14.73241087,2390.1,2389.1,1.05907792]
[1769893791495,0.52292503,2390.0,2389.1,1.58610593]
[1769893792311,0.52292503,2390.0,2389.1,0.53970629]
[1769893792627,0.52292503,2390.0,2389.1,1.58611574]
[1769893792820,1.04598133,2390.1,2389.1,1.58611574]
[1769893793024,1.04598133,2390.1,2389.2,0.01267828]
[1769893793620,13.10855927,2390.4,2389.1,1.58611574]
[1769893793825,0.83112389,2390.3,2389.1,1.58611574]
[1769893793998,13.10855927,2390.4,2389.2,0.57845778]
[1769893794183,13.10855927,2390.4,2389.0,4.19848487]
[1769893794184,13.10855927,2390.2,2388.9,1.04650268]
[1769893794524,13.10855927,2390.0,2388.6,1.0466277]
[1769893794819,13.10855927,2390.0,2388.9,1.04648314]
[1769893794820,1.7091424,2389.9,2388.9,1.04648314]
[1769893795023,0.878,2389.9,2388.9,1.04648314]
[1769893795187,0.1024,2390.3,2389.1,1.04640294]
[1769893795386,0.83155193,2390.2,2389.1,1.05908122]
[1769893795604,1.87753326,2390.1,2389.0,0.52325383]
[1769893795796,13.9401112,2390.0,2388.7,1.04656322]
[1769893796102,1.04598133,2390.1,2388.6,1.04662831]
[1769893796103,13.9401112,2389.9,2388.6,1.04662831]
[1769893796305,0.83155193,2389.8,2388.4,1.05937472]
[1769893796508,13.10855927,2389.6,2388.5,0.61370651]
[1769893796701,13.63154994,2390.0,2388.8,1.04652786]
[1769893796906,1.40962337,2389.9,2388.9,1.0464799]
[1769893797204,0.83181874,2389.8,2388.8,1.04654484]
[1769893797512,1.04611264,2389.8,2388.9,1.04650613]
[1769893797684,1.04607872,2389.9,2389.0,0.01267828]
[1769893798007,1.04593757,2390.2,2389.2,0.01267828]
[1769893798212,0.52295812,2390.1,2389.2,0.01377828]
[1769893798709,0.52295812,2390.1,2389.3,0.01267828]
[1769893798916,1.04593757,2390.2,2389.3,0.01267828]
[1769893799119,0.001,2390.1,2389.4,0.01267828]
[1769893799289,0.001,2390.1,2389.6,0.01267828]
[1769893799495,0.0008,2390.5,2389.7,1.05879844]
[1769893799794,0.0008,2390.5,2389.7,0.53956911]
[1769893799995,0.0008,2390.5,2389.2,1.92444318]
[1769893800313,0.0008,2390.5,2389.3,1.04632695]
[1769893800519,0.0008,2390.5,2389.2,0.0011]
[1769893800520,13.9393798,2390.4,2389.2,0.0011]
[1769893800718,13.9393798,2390.3,2389.0,0.0011]
[1769893800917,13.10855927,2390.1,2389.0,0.0011]
[1769893801122,13.10855927,2390.1,2388.1,0.01267828]
[1769893801123,13.10855927,2389.7,2388.1,0.01267828]
[1769893801288,13.10855927,2389.3,2388.0,0.0011]
[1769893801489,14.15510983,2388.8,2388.0,0.0011]
[1769893801705,14.15510983,2388.8,2387.3,0.0011]
[1769893801706,13.10855927,2388.6,2387.3,0.0011]
[1769893802024,13.21095927,2388.4,2387.3,0.0011]
[1769893802326,13.9393798,2388.3,2387.3,0.0011]
[1769893802635,0.83082053,2388.2,2387.3,0.0011]
[1769893803121,1.04655056,2388.8,2387.6,0.01267828]
[1769893803307,1.04655056,2388.8,2387.7,0.01267828]
[1769893803720,0.88113613,2388.7,2387.5,0.877]
[1769893803894,13.21095927,2389.0,2387.5,0.877]
[1769893804206,0.88124282,2388.9,2387.5,1.92411697]
[1769893804406,0.88124282,2388.8,2387.6,1.04707648]
[1769893804604,13.21095927,2389.0,2387.5,0.877]
[1769893804605,0.88124282,2388.7,2387.5,1.92408786]
[1769893804810,13.21095927,2389.0,2387.5,1.92408786]
[1769893805010,0.88118546,2388.9,2387.6,1.04707513]
[1769893805212,0.88118546,2388.9,2387.5,0.877]
[1769893805213,0.88118546,2388.8,2387.5,5.06539724]
[1769893805525,0.88118546,2388.7,2387.5,1.92409783]
[1769893805741,1.92586144,2388.6,2387.5,1.92409783]
[1769893805908,1.92586144,2388.6,2387.4,1.04714186]
[1769893805909,0.87927911,2388.5,2387.4,1.04714186]
[1769893806110,0.61124701,2388.5,2387.4,1.04714186]
[1769893806423,0.61124701,2388.5,2387.5,1.04711067]
[1769893806626,0.61124701,2388.5,2387.4,1.05981641]
[1769893807146,0.61124701,2388.5,2387.5,1.04711544]
[1769893807306,0.61124701,2388.5,2387.4,1.05980886]
[1769893807507,0.61124701,2388.5,2387.5,0.52624196]
[1769893807708,1.04672584,2388.4,2387.5,0.52624196]
[1769893808014,1.04672584,2388.4,2387.3,1.06095718]
[1769893808221,1.04672584,2388.4,2387.5,1.04709181]
[1769893808726,1.04672584,2388.4,2387.4,1.05980955]
[1769893808931,15.03258695,2388.4,2387.3,0.0011]
[1769893809106,0.48954829,2388.3,2387.3,0.0011]
[1769893810041,1.04668201,2388.5,2387.4,0.01267828]
[1769893810336,1.04668201,2388.5,2387.3,0.0011]
[1769893810337,0.84968415,2388.4,2387.3,0.0011]
[1769893810506,1.04668201,2388.5,2387.3,0.0011]
[1769893810706,0.84967876,2388.4,2387.3,0.0011]
[1769893810903,1.04668201,2388.5,2387.3,0.52612084]
[1769893811557,1.04668201,2388.5,2387.3,0.0011]
[1769893812046,1.04676966,2388.3,2387.6,0.0011]
[1769893812344,1.04776966,2388.3,2387.6,0.0011]
[1769893813956,0.001,2388.3,2387.6,0.0011]
[1769893824273,0.001,2388.3,2387.6,1.04817656]
[1769893824659,0.001,2388.3,2387.7,0.0011]
[1769893824840,0.001,2388.3,2387.5,0.0011]
[1769893824841,14.88010308,2388.2,2387.5,0.0011]
[1769893825047,0.89424197,2388.1,2387.5,0.0011]
[1769893825445,14.88010308,2388.1,2387.5,0.0011]
[1769893825648,0.89424197,2388.0,2387.5,0.0011]
[1769893826241,1.04694501,2387.9,2387.5,0.0011]
[1769893826443,0.89969763,2387.8,2387.5,0.0011]
[1769893826665,1.04694501,2387.9,2387.5,0.0011]
[1769893826848,0.89969827,2387.8,2387.5,0.0011]
[1769893827172,1.04694501,2387.9,2387.5,0.0011]
[1769893827346,0.89967431,2387.8,2387.5,0.0011]
[1769893827543,1.04694501,2387.9,2387.5,0.0011]
[1769893827748,0.90007906,2387.8,2387.5,0.0011]
[1769893827971,1.04694501,2387.9,2387.5,0.0011]
[1769893828170,0.90007893,2387.8,2387.5,0.0011]
[1769893828376,0.90104433,2387.7,2387.5,0.0011]
[1769893828649,4.18778005,2388.0,2387.5,0.0011]
[1769893828959,0.90104373,2387.9,2387.5,0.0011]
[1769893829165,0.90104373,2387.8,2387.5,0.0011]
[1769893829402,0.90321813,2387.7,2387.5,0.0011]
[1769893829558,0.90321813,2387.6,2387.5,0.0011]
[1769893829756,0.90321813,2387.6,2387.3,0.0011]
[1769893829994,0.90321813,2387.5,2387.0,100.0011]
[1769893830286,4.18778005,2388.0,2387.0,117.25596804]
[1769893830466,0.1024,2388.2,2387.1,14.11501439]
[1769893830661,0.1024,2388.2,2387.2,0.01267828]
[1769893830882,0.1024,2388.2,2387.2,4.21250609]
[1769893831104,1.04776966,2388.3,2387.6,13.06771851]
[1769893831105,0.001,2388.3,2387.6,13.06771851]
[1769893831398,0.001,2388.3,2387.8,0.01267828]
[1769893831583,0.001,2388.3,2387.5,0.01267828]
[1769893831896,0.001,2388.3,2387.6,0.01267828]
[1769893832887,0.001,2388.3,2387.6,14.11475602]
[1769893833092,1.04645377,2389.1,2388.1,13.05504023]
[1769893833274,1.04645377,2389.1,2388.2,0.01267828]
[1769893833586,1.04645377,2389.1,2388.2,13.06771851]
[1769893834591,13.98586111,2388.9,2387.7,2.70958561]
[1769893834760,13.98586111,2388.6,2387.3,0.01267828]
[1769893834962,15.03258695,2388.4,2387.1,1.04729287]
[1769893835202,14.86386111,2388.3,2387.1,1.81947798]
[1769893835762,14.86386111,2388.3,2387.1,1.83215626]
[1769893836191,14.86386111,2388.3,2386.5,0.0011]
[1769893836192,13.98586111,2387.6,2386.5,0.0011]
[1769893836396,2.25832756,2387.0,2386.1,0.0011]
[1769893836693,2.25832756,2387.0,2386.6,0.01267828]
[1769893836993,1.04742751,2386.8,2386.2,16.7624]
[1769893837290,0.4743943,2386.7,2386.4,0.01267828]
[1769893837488,1.04734505,2387.0,2386.7,0.01267828]
[1769893837701,1.04734505,2387.0,2386.6,0.01267828]
[1769893837702,1.04731662,2387.1,2386.6,0.01267828]
[1769893837892,3.30555943,2387.3,2386.9,0.01267828]
[1769893838090,3.30555943,2387.3,2386.7,16.77507828]
[1769893838091,2.5888835,2387.2,2386.7,16.7624]
[1769893838294,2.5888835,2387.2,2386.6,0.0011]
[1769893838480,0.33055594,2387.2,2386.6,16.7635]
[1769893838681,0.33055594,2387.2,2386.6,0.0011]
[1769893839187,1.04729588,2387.1,2386.6,0.0011]
[1769893839388,2.02289535,2387.1,2386.6,0.0011]
[1769893839586,2.02289535,2387.1,2386.2,0.01267828]
[1769893839771,2.02289535,2387.1,2386.5,0.01267828]
[1769893840095,1.04728396,2387.2,2386.7,0.01267828]
[1769893840305,4.1889945,2387.3,2386.8,0.01267828]
[1769893840306,1.04723655,2387.3,2386.8,0.01267828]
[1769893840480,1.04723655,2387.3,2386.8,16.7624]
[1769893840995,1.04713451,2387.5,2386.8,29.40919769]
[1769893841195,0.1024,2387.8,2387.2,0.01267828]
[1769893841367,0.72391251,2387.8,2387.1,0.01267828]
[1769893841567,0.72391251,2387.8,2387.2,16.77507828]
[1769893841895,1.04694501,2387.9,2387.2,16.77507828]
[1769893842070,1.04694501,2387.9,2387.3,0.01267828]
[1769893842275,0.90044322,2387.8,2387.2,16.77507828]
[1769893842598,0.90044322,2387.7,2387.2,16.77507828]
[1769893842788,0.90044322,2387.6,2387.2,16.77507828]
[1769893842987,0.90044322,2387.5,2387.3,0.01267828]
[1769893843285,0.90044322,2387.4,2387.3,0.01267828]
[1769893843491,1.04705478,2387.7,2387.3,0.01267828]
[1769893843674,1.04705478,2387.7,2387.4,16.7624]
[1769893843874,1.0470208,2387.8,2387.4,16.7624]
[1769893844078,0.001,2388.1,2387.6,0.01267828]
[1769893844279,1.04785762,2388.1,2387.7,16.77507828]
[1769893844483,5.06448366,2388.7,2388.0,0.01267828]
[1769893844801,1.04649626,2389.0,2388.5,0.01267828]
[1769893845097,4.18573311,2389.1,2388.6,0.01267828]
[1769893845098,4.18569094,2389.1,2388.6,0.01267828]
[1769893845266,4.18569094,2389.1,2388.1,0.01267828]
[1769893845466,4.18569094,2389.1,2387.7,0.01267828]
[1769893845467,13.22554904,2389.0,2387.7,0.01267828]
[1769893845674,16.76426864,2389.0,2387.9,16.7624]
[1769893845881,0.1024,2388.8,2387.9,16.7624]
[1769893846094,0.878,2388.7,2387.6,0.01267828]
[1769893846275,0.878,2388.7,2387.7,0.01267828]
[1769893846477,0.878,2388.7,2387.9,0.01267828]
[1769893846683,0.878,2388.7,2387.7,0.01267828]
[1769893846883,0.878,2388.7,2387.8,0.01267828]
[1769893847081,1.04668201,2388.5,2388.0,0.01267828]
[1769893847475,4.18669542,2388.6,2388.0,0.01267828]
[1769893847476,1.04666753,2388.6,2388.1,0.01267828]
[1769893847678,1.14892489,2388.9,2388.4,0.01267828]
[1769893847879,1.14892489,2388.9,2388.5,0.01267828]
[1769893848086,0.53349099,2388.8,2388.5,0.01267828]
[1769893848477,0.53349099,2388.8,2388.4,0.01267828]
[1769893849086,0.1024,2389.1,2388.5,0.01267828]
[1769893849405,1.26506771,2389.2,2388.6,0.01267828]
[1769893849605,1.26506771,2389.2,2388.7,0.01267828]
[1769893849905,1.04638065,2389.2,2388.8,0.01267828]
[1769893850207,1.56954143,2389.2,2388.4,0.01267828]
[1769893850401,1.56954143,2389.2,2388.0,0.89067828]
[1769893850402,0.001,2388.7,2388.0,0.89067828]
[1769893850580,0.001,2388.7,2388.0,1.9375656]
[1769893851288,0.001,2388.7,2388.3,0.01267828]
[1769893851478,0.001,2388.7,2388.4,0.01267828]
[1769893852404,0.001,2388.7,2388.1,1.05950697]
[1769893852608,0.001,2388.7,2388.5,0.01267828]
[1769893852901,0.001,2388.7,2388.6,0.01267828]
[1769893853102,1.56954143,2389.2,2388.6,0.01267828]
[1769893853304,1.56954143,2389.2,2388.3,0.01267828]
[1769893853509,1.56954143,2389.2,2388.1,0.01267828]
[1769893853692,0.57550428,2389.1,2388.3,0.01267828]
[1769893853885,0.57550428,2389.1,2388.2,0.01267828]
[1769893854207,0.57550428,2389.1,2388.2,1.04681136]
[1769893854510,0.57550428,2389.1,2388.4,0.01267828]
[1769893855247,2.44754143,2389.2,2388.4,0.01267828]
[1769893855248,1.56953684,2389.2,2388.7,0.01267828]
[1769893855399,0.89800408,2389.1,2387.9,4.20036592]
[1769893855603,0.89800408,2389.0,2388.3,0.01267828]
[1769893855803,1.04637606,2389.2,2388.3,0.01267828]
[1769893855804,0.89800408,2388.9,2388.3,0.01267828]
[1769893855990,0.89800408,2388.8,2388.4,0.01267828]
[1769893856198,1.04637606,2389.2,2388.6,0.01267828]
[1769893856395,0.89793122,2389.1,2388.7,0.01267828]
[1769893856703,1.04637606,2389.2,2388.7,0.01267828]
[1769893856704,0.89793122,2389.0,2388.7,0.01267828]
[1769893856902,1.59142413,2389.2,2388.6,0.01267828]
[1769893857098,0.89788459,2389.1,2388.7,0.01267828]
[1769893857304,0.89788459,2389.0,2388.7,0.01267828]
[1769893857605,1.04643504,2389.1,2388.7,0.01267828]
[1769893857805,0.89774003,2389.0,2388.7,0.01267828]
[1769893858110,1.04643504,2389.1,2388.7,0.01267828]
[1769893858301,0.8976233,2389.0,2388.7,0.01267828]
[1769893858507,1.04643504,2389.1,2388.7,0.01267828]
[1769893858702,0.89760606,2389.0,2388.7,0.01267828]
[1769893858903,1.04643504,2389.1,2388.7,0.01267828]
[1769893859116,0.89760775,2389.0,2388.7,0.01267828]
[1769893859314,0.21865698,2389.4,2388.8,0.01267828]
[1769893859617,0.21865698,2389.4,2389.1,0.01267828]
[1769893859812,0.21865698,2389.4,2389.2,0.01267828]
[1769893860011,0.1024,2389.8,2389.1,0.01267828]
[1769893860188,0.89743798,2389.7,2389.1,0.01267828]
[1769893860383,0.89743798,2389.6,2388.9,0.01267828]
[1769893860583,0.89743798,2389.5,2388.9,0.01267828]
[1769893860788,0.89743798,2389.4,2388.9,0.01267828]
[1769893860986,0.64591444,2389.8,2388.9,0.01267828]
[1769893861190,0.89728727,2389.7,2389.0,0.01267828]
[1769893861414,1.04624398,2389.5,2389.0,0.01267828]
[1769893861609,0.89728727,2389.4,2389.0,0.01267828]
[1769893861808,1.04624398,2389.5,2389.0,0.01267828]
[1769893862006,1.50991987,2389.4,2388.3,1.04673746]
[1769893862204,1.50991987,2389.4,2388.4,0.01267828]
[1769893862205,0.8970865,2389.3,2388.4,0.01267828]
[1769893862421,0.8970865,2389.2,2387.9,0.01267828]
[1769893862623,14.12263554,2389.1,2387.3,1.0598545]
[1769893862922,13.22554904,2388.9,2387.3,0.01267828]
[1769893863216,0.1024,2388.7,2387.6,0.01267828]
[1769893863417,0.1024,2388.5,2387.3,0.01267828]
[1769893863595,0.8970865,2388.4,2387.4,0.01267828]
[1769893863800,0.8970865,2388.4,2387.6,0.01267828]
[1769893864210,0.8970865,2388.4,2387.5,0.01267828]
[1769893865798,0.8970865,2388.4,2387.6,0.01267828]
[1769893866026,0.8970865,2388.4,2387.9,0.01267828]
[1769893866203,4.18641521,2388.7,2388.1,0.01267828]
[1769893866407,0.89746279,2388.6,2388.1,0.01267828]
[1769893866601,0.89746279,2388.6,2387.7,0.01267828]
[1769893866602,0.89746279,2388.5,2387.5,1.059779]
[1769893866802,0.89746279,2388.4,2387.8,0.01267828]
[1769893867039,1.04659438,2388.7,2387.8,0.01267828]
[1769893867040,1.54818581,2388.8,2388.2,13.81869541]
[1769893867197,0.89785946,2388.7,2388.2,13.81869541]
[1769893867394,0.89785946,2388.6,2388.2,13.81869541]
[1769893867618,1.04755916,2388.8,2387.9,0.01267828]
[1769893867815,0.89804952,2388.7,2388.1,0.01267828]
[1769893868015,0.89804952,2388.6,2388.1,0.01267828]
[1769893868215,0.89804952,2388.5,2387.8,13.80601713]
[1769893868522,0.6234211,2388.7,2388.0,0.01267828]
[1769893868523,0.89804952,2388.4,2388.0,0.01267828]
[1769893868724,0.89863423,2388.3,2387.9,0.01267828]
[1769893868904,0.6234211,2388.7,2387.9,0.01267828]
[1769893869094,0.89861567,2388.6,2388.1,0.01267828]
[1769893869301,0.89861567,2388.5,2388.1,0.01267828]
[1769893869518,0.6234211,2388.7,2388.1,0.01267828]
[1769893869519,0.89861567,2388.4,2388.1,0.01267828]
[1769893869727,0.89861567,2388.3,2388.1,0.01267828]
[1769893869896,1.04665843,2388.6,2388.0,0.01267828]
[1769893870101,0.89942029,2388.5,2387.8,0.01267828]
[1769893870321,1.57006767,2388.6,2387.8,0.01267828]
[1769893870322,0.89942029,2388.4,2387.8,0.01267828]
[1769893870525,0.89942029,2388.3,2387.9,0.01267828]
[1769893870830,0.89942029,2388.2,2387.9,0.01267828]
[1769893871028,1.57006767,2388.6,2387.9,0.01267828]
[1769893871234,1.4765039,2388.5,2387.9,0.01267828]
[1769893871527,0.90085373,2388.4,2387.6,0.01267828]